{"text_format":"3","workbook":"xlsx","n_sheets":2,"sheets":["Jadwal Karyawan","Penyetelan"],"not_rendered":{"defined_names":21},"read":"whole","date_system":"1900"}

{"sheet":"Jadwal Karyawan","index":0,"n_rows":296,"n_cols":21,"rows_kept":296,"merged":[[6,1,6,9],[66,1,66,9],[126,1,126,9],[186,1,186,9],[246,1,246,9]]}
["Jadwal Shift Karyawan"]
[]
[null,"TOTAL:",null,{"$f":"SUM(4:4)","v":{"v":56,"d":"56.00"}}]
[null,"JAM:",null,{"$f":"EmployeeDayHoursTotal","v":8},8,8,8,8,8,8,{"v":0,"d":"0.00"},{"v":0,"d":"0.00"},{"v":0,"d":"0.00"},{"v":0,"d":"0.00"},{"v":0,"d":"0.00"},{"v":0,"d":"0.00"},{"v":0,"d":"0.00"},{"v":0,"d":"0.00"},{"v":0,"d":"0.00"},{"v":0,"d":"0.00"},{"v":0,"d":"0.00"}]
[null,"KARYAWAN",null,"Hamlin, J","Miller, B","Silva, A","Miller, B","Hansen, C","Kerr, M","Rath, A"]
[]
[null,"2012-07-16T09:00:00"]
[null,{"$f":"B7","v":41106.375},{"$nulls":5},"Liburan"]
[null,{"$f":"PeriodsDisplay","v":":15"},null,"Gerai Resepsionis",{"$nulls":3},"Liburan"]
[null,":30",null,"Gerai Resepsionis",{"$nulls":3},"Liburan"]
[null,":45",null,"Gerai Resepsionis","Supervisor",null,"Layanan Pelanggan","Liburan"]
[null,"10:00 AM",null,"Gerai Resepsionis","Supervisor",null,"Layanan Pelanggan","Liburan"]
[null,":15",null,"Gerai Resepsionis","Supervisor",null,"Layanan Pelanggan","Liburan"]
[null,":30",null,"Gerai Resepsionis","Supervisor",null,"Layanan Pelanggan","Liburan","Akuntansi"]
[null,":45",null,"Gerai Resepsionis","Supervisor",null,"Layanan Pelanggan","Liburan","Akuntansi","Penjaga Gedung"]
[null,"11:00 AM",null,"Gerai Resepsionis","Supervisor",null,"Layanan Pelanggan","Liburan","Akuntansi","Penjaga Gedung"]
[null,":15",null,"Gerai Resepsionis","Supervisor","Pemandu","Layanan Pelanggan","Liburan","Akuntansi","Penjaga Gedung"]
[null,":30",null,"Gerai Resepsionis","Istirahat","Pemandu","Layanan Pelanggan","Liburan","Akuntansi","Penjaga Gedung"]
[null,":45",null,"Makan Siang","Supervisor","Pemandu","Layanan Pelanggan","Liburan","Akuntansi","Penjaga Gedung"]
[null,"12:00 PM",null,"Makan Siang","Supervisor","Pemandu","Layanan Pelanggan","Liburan","Akuntansi","Penjaga Gedung"]
[null,":15",null,"Gerai Resepsionis","Supervisor","Pemandu","Layanan Pelanggan","Liburan","Istirahat","Penjaga Gedung"]
[null,":30",null,"Gerai Resepsionis","Supervisor","Istirahat","Layanan Pelanggan","Liburan","Telepon","Istirahat"]
[null,":45",null,"Gerai Resepsionis","Supervisor","Pemandu","Layanan Pelanggan","Liburan","Telepon","Penjaga Gedung"]
[null,"1:00 PM",null,"Gerai Resepsionis","Supervisor","Pemandu","Layanan Pelanggan","Liburan","Telepon","Penjaga Gedung"]
[null,":15",null,"Gerai Resepsionis","Supervisor","Pemandu","Makan Siang","Liburan","Telepon","Penjaga Gedung"]
[null,":30",null,null,"Supervisor","Pemandu","Makan Siang","Liburan","Telepon","Penjaga Gedung"]
[null,":45",null,null,"Supervisor","Pemandu","Makan Siang","Liburan","Makan Siang","Penjaga Gedung"]
[null,"2:00 PM",null,"Kasir","Makan Siang","Pemandu","Makan Siang","Liburan","Makan Siang","Penjaga Gedung"]
[null,":15",null,"Kasir","Makan Siang","Pemandu","Layanan Pelanggan","Liburan","Telepon","Penjaga Gedung"]
[null,":30",null,"Kasir","Makan Siang","Makan Siang","Layanan Pelanggan","Liburan","Telepon","Makan Siang"]
[null,":45",null,"Kasir","Makan Siang","Makan Siang","Layanan Pelanggan","Liburan","Telepon","Makan Siang"]
[null,"3:00 PM",null,"Kasir","Keamanan","Makan Siang","Layanan Pelanggan","Liburan","Telepon","Makan Siang"]
[null,":15",null,"Kasir","Keamanan","Makan Siang","Layanan Pelanggan","Liburan","Telepon","Makan Siang"]
[null,":30",null,"Kasir","Keamanan","Pemandu","Layanan Pelanggan","Liburan","Telepon","Tutup"]
[null,":45",null,"Kasir","Keamanan","Pemandu","Layanan Pelanggan","Liburan","Telepon","Tutup"]
[null,"4:00 PM",null,"Kasir","Keamanan","Pemandu","Layanan Pelanggan","Liburan","Istirahat","Tutup"]
[null,":15",null,"Istirahat","Keamanan","Pemandu","Istirahat","Liburan","Telepon","Tutup"]
[null,":30",null,"Kasir","Keamanan","Pemandu","Layanan Pelanggan","Liburan","Telepon","Tutup"]
[null,":45",null,"Kasir","Keamanan","Pemandu","Layanan Pelanggan","Liburan","Telepon","Tutup"]
[null,"5:00 PM",null,"Kasir","Keamanan","Pemandu","Layanan Pelanggan",null,"Telepon","Tutup"]
[null,":15",null,"Kasir","Keamanan","Pemandu","Layanan Pelanggan",null,"Telepon","Tutup"]
[null,":30",null,"Kasir","Keamanan","Pemandu","Layanan Pelanggan",null,"Telepon","Tutup"]
[null,":45",null,"Kasir","Keamanan","Pemandu","Layanan Pelanggan",null,"Telepon","Tutup"]
[null,"6:00 PM",null,"Kasir","Keamanan","Pemandu","Layanan Pelanggan",null,"Telepon","Tutup"]
[null,":15",null,"Kasir","Keamanan","Pemandu","Layanan Pelanggan",null,"Telepon","Tutup"]
[null,":30",null,null,"Keamanan","Pemandu","Layanan Pelanggan",null,"Telepon","Tutup"]
[null,":45",null,null,"Keamanan","Istirahat","Layanan Pelanggan",null,"Telepon","Istirahat"]
[null,"7:00 PM",{"$nulls":3},"Pemandu",null,null,"Telepon","Tutup"]
[null,":15",{"$nulls":3},"Pemandu",null,null,"Telepon","Tutup"]
[null,":30",{"$nulls":3},"Pemandu",{"$nulls":3},"Tutup"]
[null,":45",{"$nulls":3},"Pemandu",{"$nulls":3},"Tutup"]
[null,"8:00 PM",{"$nulls":3},"Pemandu",{"$nulls":3},"Tutup"]
[null,":15",{"$nulls":3},"Pemandu"]
[null,":30",{"$nulls":3},"Pemandu"]
[null,":45"]
[null,"9:00 PM"]
[]
[]
[]
[]
["Jadwal Karyawan"]
[]
[null,"TOTAL:",null,{"$f":"SUM(64:64)","v":{"v":56,"d":"56.00"}}]
[null,"JAM:",null,{"$f":"EmployeeDayHoursTotal","v":8},8,8,8,8,8,8,{"v":0,"d":"0.00"},{"v":0,"d":"0.00"},{"v":0,"d":"0.00"},{"v":0,"d":"0.00"},{"v":0,"d":"0.00"},{"v":0,"d":"0.00"},{"v":0,"d":"0.00"},{"v":0,"d":"0.00"},{"v":0,"d":"0.00"},{"v":0,"d":"0.00"},{"v":0,"d":"0.00"}]
[null,"KARYAWAN",null,"Hamlin, J","Miller, B","Silva, A","Park, D","Hansen, C","Kerr, M","Rath, A"]
[]
[null,{"$f":"B7+1","v":"2012-07-17T09:00:00"}]
[null,{"$f":"B67","v":41107.375},{"$nulls":5},"Liburan"]
[null,{"$f":"PeriodsDisplay","v":":15"},null,"Gerai Resepsionis",{"$nulls":3},"Liburan"]
[null,":30",null,"Gerai Resepsionis",{"$nulls":3},"Liburan"]
[null,":45",null,"Gerai Resepsionis","Supervisor",null,"Layanan Pelanggan","Liburan"]
[null,"1:00 AM",null,"Gerai Resepsionis","Supervisor",null,"Layanan Pelanggan","Liburan"]
[null,":15",null,"Gerai Resepsionis","Supervisor",null,"Layanan Pelanggan","Liburan"]
[null,":30",null,"Gerai Resepsionis","Supervisor",null,"Layanan Pelanggan","Liburan","Akuntansi"]
[null,":45",null,"Gerai Resepsionis","Supervisor",null,"Layanan Pelanggan","Liburan","Akuntansi","Penjaga Gedung"]
[null,"2:00 AM",null,"Gerai Resepsionis","Supervisor",null,"Layanan Pelanggan","Liburan","Akuntansi","Penjaga Gedung"]
[null,":15",null,"Gerai Resepsionis","Supervisor","Pemandu","Layanan Pelanggan","Liburan","Akuntansi","Penjaga Gedung"]
[null,":30",null,"Gerai Resepsionis","Istirahat","Pemandu","Layanan Pelanggan","Liburan","Akuntansi","Penjaga Gedung"]
[null,":45",null,"Makan Siang","Supervisor","Pemandu","Layanan Pelanggan","Liburan","Akuntansi","Penjaga Gedung"]
[null,"3:00 AM",null,"Makan Siang","Supervisor","Pemandu","Layanan Pelanggan","Liburan","Akuntansi","Penjaga Gedung"]
[null,":15",null,"Gerai Resepsionis","Supervisor","Pemandu","Layanan Pelanggan","Liburan","Istirahat","Penjaga Gedung"]
[null,":30",null,"Gerai Resepsionis","Supervisor","Istirahat","Layanan Pelanggan","Liburan","Telepon","Istirahat"]
[null,":45",null,"Gerai Resepsionis","Supervisor","Pemandu","Layanan Pelanggan","Liburan","Telepon","Penjaga Gedung"]
[null,"4:00 AM",null,"Gerai Resepsionis","Supervisor","Pemandu","Layanan Pelanggan","Liburan","Telepon","Penjaga Gedung"]
[null,":15",null,"Gerai Resepsionis","Supervisor","Pemandu","Makan Siang","Liburan","Telepon","Penjaga Gedung"]
[null,":30",null,null,"Supervisor","Pemandu","Makan Siang","Liburan","Telepon","Penjaga Gedung"]
[null,":45",null,null,"Supervisor","Pemandu","Makan Siang","Liburan","Makan Siang","Penjaga Gedung"]
[null,"5:00 AM",null,"Kasir","Makan Siang","Pemandu","Makan Siang","Liburan","Makan Siang","Penjaga Gedung"]
[null,":15",null,"Kasir","Makan Siang","Pemandu","Layanan Pelanggan","Liburan","Telepon","Penjaga Gedung"]
[null,":30",null,"Kasir","Makan Siang","Makan Siang","Layanan Pelanggan","Liburan","Telepon","Makan Siang"]
[null,":45",null,"Kasir","Makan Siang","Makan Siang","Layanan Pelanggan","Liburan","Telepon","Makan Siang"]
[null,"6:00 AM",null,"Kasir","Keamanan","Makan Siang","Layanan Pelanggan","Liburan","Telepon","Makan Siang"]
[null,":15",null,"Kasir","Keamanan","Makan Siang","Layanan Pelanggan","Liburan","Telepon","Makan Siang"]
[null,":30",null,"Kasir","Keamanan","Pemandu","Layanan Pelanggan","Liburan","Telepon","Tutup"]
[null,":45",null,"Kasir","Keamanan","Pemandu","Layanan Pelanggan","Liburan","Telepon","Tutup"]
[null,"7:00 AM",null,"Kasir","Keamanan","Pemandu","Layanan Pelanggan","Liburan","Istirahat","Tutup"]
[null,":15",null,"Istirahat","Keamanan","Pemandu","Istirahat","Liburan","Telepon","Tutup"]
[null,":30",null,"Kasir","Keamanan","Pemandu","Layanan Pelanggan","Liburan","Telepon","Tutup"]
[null,":45",null,"Kasir","Keamanan","Pemandu","Layanan Pelanggan","Liburan","Telepon","Tutup"]
[null,"8:00 AM",null,"Kasir","Keamanan","Pemandu","Layanan Pelanggan",null,"Telepon","Tutup"]
[null,":15",null,"Kasir","Keamanan","Pemandu","Layanan Pelanggan",null,"Telepon","Tutup"]
[null,":30",null,"Kasir","Keamanan","Pemandu","Layanan Pelanggan",null,"Telepon","Tutup"]
[null,":45",null,"Kasir","Keamanan","Pemandu","Layanan Pelanggan",null,"Telepon","Tutup"]
[null,"9:00 AM",null,"Kasir","Keamanan","Pemandu","Layanan Pelanggan",null,"Telepon","Tutup"]
[null,":15",null,"Kasir","Keamanan","Pemandu","Layanan Pelanggan",null,"Telepon","Tutup"]
[null,":30",null,null,"Keamanan","Pemandu","Layanan Pelanggan",null,"Telepon","Tutup"]
[null,":45",null,null,"Keamanan","Istirahat","Layanan Pelanggan",null,"Telepon","Istirahat"]
[null,"10:00 AM",{"$nulls":3},"Pemandu",null,null,"Telepon","Tutup"]
[null,":15",{"$nulls":3},"Pemandu",null,null,"Telepon","Tutup"]
[null,":30",{"$nulls":3},"Pemandu",{"$nulls":3},"Tutup"]
[null,":45",{"$nulls":3},"Pemandu",{"$nulls":3},"Tutup"]
[null,"11:00 AM",{"$nulls":3},"Pemandu",{"$nulls":3},"Tutup"]
[null,":15",{"$nulls":3},"Pemandu"]
[null,":30",{"$nulls":3},"Pemandu"]
[null,":45"]
[null,"12:00 PM"]
[]
[]
[]
[]
["Jadwal Karyawan"]
[]
[null,"TOTAL:",null,{"$f":"SUM(124:124)","v":{"v":56,"d":"56.00"}}]
[null,"JAM:",null,{"$f":"EmployeeDayHoursTotal","v":8},8,8,8,8,8,8,{"v":0,"d":"0.00"},{"v":0,"d":"0.00"},{"v":0,"d":"0.00"},{"v":0,"d":"0.00"},{"v":0,"d":"0.00"},{"v":0,"d":"0.00"},{"v":0,"d":"0.00"},{"v":0,"d":"0.00"},{"v":0,"d":"0.00"},{"v":0,"d":"0.00"},{"v":0,"d":"0.00"}]
[null,"KARYAWAN",null,"Hamlin, J","Miller, B","Silva, A","Park, D","Hansen, C","Kerr, M","Rath, A"]
[]
[null,{"$f":"B67+1","v":"2012-07-18T09:00:00"}]
[null,{"$f":"B127","v":41108.375},{"$nulls":5},"Liburan"]
[null,{"$f":"PeriodsDisplay","v":":15"},null,"Gerai Resepsionis",{"$nulls":3},"Liburan"]
[null,":30",null,"Gerai Resepsionis",{"$nulls":3},"Liburan"]
[null,":45",null,"Gerai Resepsionis","Supervisor",null,"Layanan Pelanggan","Liburan"]
[null,"4:00 PM",null,"Gerai Resepsionis","Supervisor",null,"Layanan Pelanggan","Liburan"]
[null,":15",null,"Gerai Resepsionis","Supervisor",null,"Layanan Pelanggan","Liburan"]
[null,":30",null,"Gerai Resepsionis","Supervisor",null,"Layanan Pelanggan","Liburan","Akuntansi"]
[null,":45",null,"Gerai Resepsionis","Supervisor",null,"Layanan Pelanggan","Liburan","Akuntansi","Penjaga Gedung"]
[null,"5:00 PM",null,"Gerai Resepsionis","Supervisor",null,"Layanan Pelanggan","Liburan","Akuntansi","Penjaga Gedung"]
[null,":15",null,"Gerai Resepsionis","Supervisor","Pemandu","Layanan Pelanggan","Liburan","Akuntansi","Penjaga Gedung"]
[null,":30",null,"Gerai Resepsionis","Istirahat","Pemandu","Layanan Pelanggan","Liburan","Akuntansi","Penjaga Gedung"]
[null,":45",null,"Makan Siang","Supervisor","Pemandu","Layanan Pelanggan","Liburan","Akuntansi","Penjaga Gedung"]
[null,"6:00 PM",null,"Makan Siang","Supervisor","Pemandu","Layanan Pelanggan","Liburan","Akuntansi","Penjaga Gedung"]
[null,":15",null,"Gerai Resepsionis","Supervisor","Pemandu","Layanan Pelanggan","Liburan","Istirahat","Penjaga Gedung"]
[null,":30",null,"Gerai Resepsionis","Supervisor","Istirahat","Layanan Pelanggan","Liburan","Telepon","Istirahat"]
[null,":45",null,"Gerai Resepsionis","Supervisor","Pemandu","Layanan Pelanggan","Liburan","Telepon","Penjaga Gedung"]
[null,"7:00 PM",null,"Gerai Resepsionis","Supervisor","Pemandu","Layanan Pelanggan","Liburan","Telepon","Penjaga Gedung"]
[null,":15",null,"Gerai Resepsionis","Supervisor","Pemandu","Makan Siang","Liburan","Telepon","Penjaga Gedung"]
[null,":30",null,null,"Supervisor","Pemandu","Makan Siang","Liburan","Telepon","Penjaga Gedung"]
[null,":45",null,null,"Supervisor","Pemandu","Makan Siang","Liburan","Makan Siang","Penjaga Gedung"]
[null,"8:00 PM",null,"Kasir","Makan Siang","Pemandu","Makan Siang","Liburan","Makan Siang","Penjaga Gedung"]
[null,":15",null,"Kasir","Makan Siang","Pemandu","Layanan Pelanggan","Liburan","Telepon","Penjaga Gedung"]
[null,":30",null,"Kasir","Makan Siang","Makan Siang","Layanan Pelanggan","Liburan","Telepon","Makan Siang"]
[null,":45",null,"Kasir","Makan Siang","Makan Siang","Layanan Pelanggan","Liburan","Telepon","Makan Siang"]
[null,"9:00 PM",null,"Kasir","Keamanan","Makan Siang","Layanan Pelanggan","Liburan","Telepon","Makan Siang"]
[null,":15",null,"Kasir","Keamanan","Makan Siang","Layanan Pelanggan","Liburan","Telepon","Makan Siang"]
[null,":30",null,"Kasir","Keamanan","Pemandu","Layanan Pelanggan","Liburan","Telepon","Tutup"]
[null,":45",null,"Kasir","Keamanan","Pemandu","Layanan Pelanggan","Liburan","Telepon","Tutup"]
[null,"10:00 PM",null,"Kasir","Keamanan","Pemandu","Layanan Pelanggan","Liburan","Istirahat","Tutup"]
[null,":15",null,"Istirahat","Keamanan","Pemandu","Istirahat","Liburan","Telepon","Tutup"]
[null,":30",null,"Kasir","Keamanan","Pemandu","Layanan Pelanggan","Liburan","Telepon","Tutup"]
[null,":45",null,"Kasir","Keamanan","Pemandu","Layanan Pelanggan","Liburan","Telepon","Tutup"]
[null,"11:00 PM",null,"Kasir","Keamanan","Pemandu","Layanan Pelanggan",null,"Telepon","Tutup"]
[null,":15",null,"Kasir","Keamanan","Pemandu","Layanan Pelanggan",null,"Telepon","Tutup"]
[null,":30",null,"Kasir","Keamanan","Pemandu","Layanan Pelanggan",null,"Telepon","Tutup"]
[null,":45",null,"Kasir","Keamanan","Pemandu","Layanan Pelanggan",null,"Telepon","Tutup"]
[null,"12:00 AM",null,"Kasir","Keamanan","Pemandu","Layanan Pelanggan",null,"Telepon","Tutup"]
[null,":15",null,"Kasir","Keamanan","Pemandu","Layanan Pelanggan",null,"Telepon","Tutup"]
[null,":30",null,null,"Keamanan","Pemandu","Layanan Pelanggan",null,"Telepon","Tutup"]
[null,":45",null,null,"Keamanan","Istirahat","Layanan Pelanggan",null,"Telepon","Istirahat"]
[null,"1:00 AM",{"$nulls":3},"Pemandu",null,null,"Telepon","Tutup"]
[null,":15",{"$nulls":3},"Pemandu",null,null,"Telepon","Tutup"]
[null,":30",{"$nulls":3},"Pemandu",{"$nulls":3},"Tutup"]
[null,":45",{"$nulls":3},"Pemandu",{"$nulls":3},"Tutup"]
[null,"2:00 AM",{"$nulls":3},"Pemandu",{"$nulls":3},"Tutup"]
[null,":15",{"$nulls":3},"Pemandu"]
[null,":30",{"$nulls":3},"Pemandu"]
[null,":45"]
[null,"3:00 AM"]
[]
[]
[]
[]
["Jadwal Karyawan"]
[]
[null,"TOTAL:",null,{"$f":"SUM(184:184)","v":{"v":56,"d":"56.00"}}]
[null,"JAM:",null,{"$f":"EmployeeDayHoursTotal","v":8},8,8,8,8,8,8,{"v":0,"d":"0.00"},{"v":0,"d":"0.00"},{"v":0,"d":"0.00"},{"v":0,"d":"0.00"},{"v":0,"d":"0.00"},{"v":0,"d":"0.00"},{"v":0,"d":"0.00"},{"v":0,"d":"0.00"},{"v":0,"d":"0.00"},{"v":0,"d":"0.00"},{"v":0,"d":"0.00"}]
[null,"KARYAWAN",null,"Hamlin, J","Miller, B","Silva, A","Park, D","Hansen, C","Kerr, M","Rath, A"]
[]
[null,{"$f":"B127+1","v":"2012-07-19T09:00:00"}]
[null,{"$f":"B187","v":41109.375},{"$nulls":5},"Liburan"]
[null,{"$f":"PeriodsDisplay","v":":15"},null,"Gerai Resepsionis",{"$nulls":3},"Liburan"]
[null,":30",null,"Gerai Resepsionis",{"$nulls":3},"Liburan"]
[null,":45",null,"Gerai Resepsionis","Supervisor",null,"Layanan Pelanggan","Liburan"]
[null,"7:00 AM",null,"Gerai Resepsionis","Supervisor",null,"Layanan Pelanggan","Liburan"]
[null,":15",null,"Gerai Resepsionis","Supervisor",null,"Layanan Pelanggan","Liburan"]
[null,":30",null,"Gerai Resepsionis","Supervisor",null,"Layanan Pelanggan","Liburan","Akuntansi"]
[null,":45",null,"Gerai Resepsionis","Supervisor",null,"Layanan Pelanggan","Liburan","Akuntansi","Penjaga Gedung"]
[null,"8:00 AM",null,"Gerai Resepsionis","Supervisor",null,"Layanan Pelanggan","Liburan","Akuntansi","Penjaga Gedung"]
[null,":15",null,"Gerai Resepsionis","Supervisor","Pemandu","Layanan Pelanggan","Liburan","Akuntansi","Penjaga Gedung"]
[null,":30",null,"Gerai Resepsionis","Istirahat","Pemandu","Layanan Pelanggan","Liburan","Akuntansi","Penjaga Gedung"]
[null,":45",null,"Makan Siang","Supervisor","Pemandu","Layanan Pelanggan","Liburan","Akuntansi","Penjaga Gedung"]
[null,"9:00 AM",null,"Makan Siang","Supervisor","Pemandu","Layanan Pelanggan","Liburan","Akuntansi","Penjaga Gedung"]
[null,":15",null,"Gerai Resepsionis","Supervisor","Pemandu","Layanan Pelanggan","Liburan","Istirahat","Penjaga Gedung"]
[null,":30",null,"Gerai Resepsionis","Supervisor","Istirahat","Layanan Pelanggan","Liburan","Telepon","Istirahat"]
[null,":45",null,"Gerai Resepsionis","Supervisor","Pemandu","Layanan Pelanggan","Liburan","Telepon","Penjaga Gedung"]
[null,"10:00 AM",null,"Gerai Resepsionis","Supervisor","Pemandu","Layanan Pelanggan","Liburan","Telepon","Penjaga Gedung"]
[null,":15",null,"Gerai Resepsionis","Supervisor","Pemandu","Makan Siang","Liburan","Telepon","Penjaga Gedung"]
[null,":30",null,null,"Supervisor","Pemandu","Makan Siang","Liburan","Telepon","Penjaga Gedung"]
[null,":45",null,null,"Supervisor","Pemandu","Makan Siang","Liburan","Makan Siang","Penjaga Gedung"]
[null,"11:00 AM",null,"Kasir","Makan Siang","Pemandu","Makan Siang","Liburan","Makan Siang","Penjaga Gedung"]
[null,":15",null,"Kasir","Makan Siang","Pemandu","Layanan Pelanggan","Liburan","Telepon","Penjaga Gedung"]
[null,":30",null,"Kasir","Makan Siang","Makan Siang","Layanan Pelanggan","Liburan","Telepon","Makan Siang"]
[null,":45",null,"Kasir","Makan Siang","Makan Siang","Layanan Pelanggan","Liburan","Telepon","Makan Siang"]
[null,"12:00 PM",null,"Kasir","Keamanan","Makan Siang","Layanan Pelanggan","Liburan","Telepon","Makan Siang"]
[null,":15",null,"Kasir","Keamanan","Makan Siang","Layanan Pelanggan","Liburan","Telepon","Makan Siang"]
[null,":30",null,"Kasir","Keamanan","Pemandu","Layanan Pelanggan","Liburan","Telepon","Tutup"]
[null,":45",null,"Kasir","Keamanan","Pemandu","Layanan Pelanggan","Liburan","Telepon","Tutup"]
[null,"1:00 PM",null,"Kasir","Keamanan","Pemandu","Layanan Pelanggan","Liburan","Istirahat","Tutup"]
[null,":15",null,"Istirahat","Keamanan","Pemandu","Istirahat","Liburan","Telepon","Tutup"]
[null,":30",null,"Kasir","Keamanan","Pemandu","Layanan Pelanggan","Liburan","Telepon","Tutup"]
[null,":45",null,"Kasir","Keamanan","Pemandu","Layanan Pelanggan","Liburan","Telepon","Tutup"]
[null,"2:00 PM",null,"Kasir","Keamanan","Pemandu","Layanan Pelanggan",null,"Telepon","Tutup"]
[null,":15",null,"Kasir","Keamanan","Pemandu","Layanan Pelanggan",null,"Telepon","Tutup"]
[null,":30",null,"Kasir","Keamanan","Pemandu","Layanan Pelanggan",null,"Telepon","Tutup"]
[null,":45",null,"Kasir","Keamanan","Pemandu","Layanan Pelanggan",null,"Telepon","Tutup"]
[null,"3:00 PM",null,"Kasir","Keamanan","Pemandu","Layanan Pelanggan",null,"Telepon","Tutup"]
[null,":15",null,"Kasir","Keamanan","Pemandu","Layanan Pelanggan",null,"Telepon","Tutup"]
[null,":30",null,null,"Keamanan","Pemandu","Layanan Pelanggan",null,"Telepon","Tutup"]
[null,":45",null,null,"Keamanan","Istirahat","Layanan Pelanggan",null,"Telepon","Istirahat"]
[null,"4:00 PM",{"$nulls":3},"Pemandu",null,null,"Telepon","Tutup"]
[null,":15",{"$nulls":3},"Pemandu",null,null,"Telepon","Tutup"]
[null,":30",{"$nulls":3},"Pemandu",{"$nulls":3},"Tutup"]
[null,":45",{"$nulls":3},"Pemandu",{"$nulls":3},"Tutup"]
[null,"5:00 PM",{"$nulls":3},"Pemandu",{"$nulls":3},"Tutup"]
[null,":15",{"$nulls":3},"Pemandu"]
[null,":30",{"$nulls":3},"Pemandu"]
[null,":45"]
[null,"6:00 PM"]
[]
[]
[]
[]
["Jadwal Karyawan"]
[]
[null,"TOTAL:",null,{"$f":"SUM(244:244)","v":{"v":56,"d":"56.00"}}]
[null,0,null,{"$f":"EmployeeDayHoursTotal","v":8},8,8,8,8,8,8,{"v":0,"d":"0.00"},{"v":0,"d":"0.00"},{"v":0,"d":"0.00"},{"v":0,"d":"0.00"},{"v":0,"d":"0.00"},{"v":0,"d":"0.00"},{"v":0,"d":"0.00"},{"v":0,"d":"0.00"},{"v":0,"d":"0.00"},{"v":0,"d":"0.00"},{"v":0,"d":"0.00"}]
[null,"KARYAWAN",null,"Hamlin, J","Miller, B","Silva, A","Park, D","Hansen, C","Kerr, M","Rath, A"]
[]
[null,{"$f":"B187+1","v":"2012-07-20T09:00:00"}]
[null,{"$f":"B247","v":41110.375},{"$nulls":5},"Liburan"]
[null,{"$f":"PeriodsDisplay","v":":15"},null,"Gerai Resepsionis",{"$nulls":3},"Liburan"]
[null,":30",null,"Gerai Resepsionis",{"$nulls":3},"Liburan"]
[null,":45",null,"Gerai Resepsionis","Supervisor",null,"Layanan Pelanggan","Liburan"]
[null,"10:00 PM",null,"Gerai Resepsionis","Supervisor",null,"Layanan Pelanggan","Liburan"]
[null,":15",null,"Gerai Resepsionis","Supervisor",null,"Layanan Pelanggan","Liburan"]
[null,":30",null,"Gerai Resepsionis","Supervisor",null,"Layanan Pelanggan","Liburan","Akuntansi"]
[null,":45",null,"Gerai Resepsionis","Supervisor",null,"Layanan Pelanggan","Liburan","Akuntansi","Penjaga Gedung"]
[null,"11:00 PM",null,"Gerai Resepsionis","Supervisor",null,"Layanan Pelanggan","Liburan","Akuntansi","Penjaga Gedung"]
[null,":15",null,"Gerai Resepsionis","Supervisor","Pemandu","Layanan Pelanggan","Liburan","Akuntansi","Penjaga Gedung"]
[null,":30",null,"Gerai Resepsionis","Istirahat","Pemandu","Layanan Pelanggan","Liburan","Akuntansi","Penjaga Gedung"]
[null,":45",null,"Makan Siang","Supervisor","Pemandu","Layanan Pelanggan","Liburan","Akuntansi","Penjaga Gedung"]
[null,"12:00 AM",null,"Makan Siang","Supervisor","Pemandu","Layanan Pelanggan","Liburan","Akuntansi","Penjaga Gedung"]
[null,":15",null,"Gerai Resepsionis","Supervisor","Pemandu","Layanan Pelanggan","Liburan","Istirahat","Penjaga Gedung"]
[null,":30",null,"Gerai Resepsionis","Supervisor","Istirahat","Layanan Pelanggan","Liburan","Telepon","Istirahat"]
[null,":45",null,"Gerai Resepsionis","Supervisor","Pemandu","Layanan Pelanggan","Liburan","Telepon","Penjaga Gedung"]
[null,"1:00 AM",null,"Gerai Resepsionis","Supervisor","Pemandu","Layanan Pelanggan","Liburan","Telepon","Penjaga Gedung"]
[null,":15",null,"Gerai Resepsionis","Supervisor","Pemandu","Makan Siang","Liburan","Telepon","Penjaga Gedung"]
[null,":30",null,null,"Supervisor","Pemandu","Makan Siang","Liburan","Telepon","Penjaga Gedung"]
[null,":45",null,null,"Supervisor","Pemandu","Makan Siang","Liburan","Makan Siang","Penjaga Gedung"]
[null,"2:00 AM",null,"Kasir","Makan Siang","Pemandu","Makan Siang","Liburan","Makan Siang","Penjaga Gedung"]
[null,":15",null,"Kasir","Makan Siang","Pemandu","Layanan Pelanggan","Liburan","Telepon","Penjaga Gedung"]
[null,":30",null,"Kasir","Makan Siang","Makan Siang","Layanan Pelanggan","Liburan","Telepon","Makan Siang"]
[null,":45",null,"Kasir","Makan Siang","Makan Siang","Layanan Pelanggan","Liburan","Telepon","Makan Siang"]
[null,"3:00 AM",null,"Kasir","Keamanan","Makan Siang","Layanan Pelanggan","Liburan","Telepon","Makan Siang"]
[null,":15",null,"Kasir","Keamanan","Makan Siang","Layanan Pelanggan","Liburan","Telepon","Makan Siang"]
[null,":30",null,"Kasir","Keamanan","Pemandu","Layanan Pelanggan","Liburan","Telepon","Tutup"]
[null,":45",null,"Kasir","Keamanan","Pemandu","Layanan Pelanggan","Liburan","Telepon","Tutup"]
[null,"4:00 AM",null,"Kasir","Keamanan","Pemandu","Layanan Pelanggan","Liburan","Istirahat","Tutup"]
[null,":15",null,"Istirahat","Keamanan","Pemandu","Istirahat","Liburan","Telepon","Tutup"]
[null,":30",null,"Kasir","Keamanan","Pemandu","Layanan Pelanggan","Liburan","Telepon","Tutup"]
[null,":45",null,"Kasir","Keamanan","Pemandu","Layanan Pelanggan","Liburan","Telepon","Tutup"]
[null,"5:00 AM",null,"Kasir","Keamanan","Pemandu","Layanan Pelanggan",null,"Telepon","Tutup"]
[null,":15",null,"Kasir","Keamanan","Pemandu","Layanan Pelanggan",null,"Telepon","Tutup"]
[null,":30",null,"Kasir","Keamanan","Pemandu","Layanan Pelanggan",null,"Telepon","Tutup"]
[null,":45",null,"Kasir","Keamanan","Pemandu","Layanan Pelanggan",null,"Telepon","Tutup"]
[null,"6:00 AM",null,"Kasir","Keamanan","Pemandu","Layanan Pelanggan",null,"Telepon","Tutup"]
[null,":15",null,"Kasir","Keamanan","Pemandu","Layanan Pelanggan",null,"Telepon","Tutup"]
[null,":30",null,null,"Keamanan","Pemandu","Layanan Pelanggan",null,"Telepon","Tutup"]
[null,":45",null,null,"Keamanan","Istirahat","Layanan Pelanggan",null,"Telepon","Istirahat"]
[null,"7:00 AM",{"$nulls":3},"Pemandu",null,null,"Telepon","Tutup"]
[null,":15",{"$nulls":3},"Pemandu",null,null,"Telepon","Tutup"]
[null,":30",{"$nulls":3},"Pemandu",{"$nulls":3},"Tutup"]
[null,":45",{"$nulls":3},"Pemandu",{"$nulls":3},"Tutup"]
[null,"8:00 AM",{"$nulls":3},"Pemandu",{"$nulls":3},"Tutup"]
[null,":15",{"$nulls":3},"Pemandu"]
[null,":30",{"$nulls":3},"Pemandu"]
[null,":45"]
[null,"9:00 AM"]

{"sheet":"Penyetelan","index":1,"n_rows":26,"n_cols":7,"rows_kept":26}
[null,"Penyetelan"]
[]
[]
[null,"INPUT KENAIKAN PER JAM",4]
[]
[]
[]
[]
[]
[null,"Karyawan",null,"Posisi/Waktu Istirahat","Warna","Dibayar","Sepanjang Hari"]
[null,"J. Hamlin",null,"Makan Siang",1,false,false]
[null,"C. Hansen,",null,"Istirahat",1,false,false]
[null,"M. Kerr",null,"Istirahat",1,false,true]
[null,"D. Levin",null,"Sakit",1,false,true]
[null,"B. Miller",null,"Izin",1,true,true]
[null,"D. Park",null,"Liburan",1,true,true]
[null,"A. Rath",null,"Gerai Resepsionis",2,true,false]
[null,"A. Silva",null,"Kasir",3,true,false]
[{"$nulls":3},"Supervisor",4,true,false]
[{"$nulls":3},"Pemandu",5,true,false]
[{"$nulls":3},"Layanan Pelanggan",6,true,false]
[{"$nulls":3},"Telepon",7,true,false]
[{"$nulls":3},"Keamanan",8,true,false]
[{"$nulls":3},"Penjaga Gedung",9,true,false]
[{"$nulls":3},"Akuntansi",10,true,false]
[{"$nulls":3},"Tutup",11,true,false]